[Event "Early-Titled-Tuesday-Blitz-February-13-2024"]
[Site "Chess.com"]
[Date "2024.02.13"]
[Round "5"]
[White "andrzej"]
[Black "GaiozNigalidze"]
[Result "1-0"]
[WhiteElo "2499"]
[BlackElo "2688"]
[TimeControl "180+1"]
[EndTime "9:00:21 PST"]
[Termination "andrzej won on time"]

1. e4 {[%clk 0:03:00.9]} 1... c5 {[%clk 0:03:00.3]} 2. Nf3 {[%clk 0:03:01.4]}
2... d6 {[%clk 0:03:00.9]} 3. d4 {[%clk 0:03:02.1]} 3... cxd4 {[%clk 0:03:01.8]}
4. Nxd4 {[%clk 0:03:02.8]} 4... Nf6 {[%clk 0:03:02.3]} 5. Nc3 {[%clk 0:03:03.4]}
5... a6 {[%clk 0:03:02.9]} 6. Be3 {[%clk 0:03:04]} 6... e5 {[%clk 0:03:02.8]} 7.
Nb3 {[%clk 0:03:04.4]} 7... Be6 {[%clk 0:03:02.9]} 8. h3 {[%clk 0:03:04.9]} 8...
Be7 {[%clk 0:03:02.2]} 9. Qf3 {[%clk 0:03:03.9]} 9... Nbd7 {[%clk 0:03:00.1]}
10. g4 {[%clk 0:03:01]} 10... h6 {[%clk 0:02:59.4]} 11. O-O-O {[%clk 0:03:00.9]}
11... Rc8 {[%clk 0:02:56.3]} 12. Nd5 {[%clk 0:02:58.8]} 12... Bxd5 {[%clk
0:02:50.8]} 13. exd5 {[%clk 0:02:59.7]} 13... Qc7 {[%clk 0:02:42.1]} 14. Bd3
{[%clk 0:02:58.8]} 14... Nb6 {[%clk 0:02:36.5]} 15. Bf5 {[%clk 0:02:43.9]} 15...
Ra8 {[%clk 0:02:21.4]} 16. Kb1 {[%clk 0:02:31.5]} 16... a5 {[%clk 0:02:10.3]}
17. a3 {[%clk 0:02:04.6]} 17... Nc4 {[%clk 0:01:54.7]} 18. Bc1 {[%clk
0:01:55.4]} 18... b5 {[%clk 0:01:34.5]} 19. h4 {[%clk 0:01:48.8]} 19... a4
{[%clk 0:01:17.4]} 20. Nd2 {[%clk 0:01:48.6]} 20... g6 {[%clk 0:01:01.2]} 21.
Bd3 {[%clk 0:01:39.5]} 21... Rc8 {[%clk 0:00:58.5]} 22. g5 {[%clk 0:01:27.2]}
22... Nh5 {[%clk 0:00:54.8]} 23. Ne4 {[%clk 0:01:25.1]} 23... b4 {[%clk
0:00:37.3]} 24. axb4 {[%clk 0:01:15.4]} 24... a3 {[%clk 0:00:37.8]} 25. bxa3
{[%clk 0:01:12]} 25... Ra8 {[%clk 0:00:30.2]} 26. Bxc4 {[%clk 0:01:08.1]} 26...
Qxc4 {[%clk 0:00:30.2]} 27. Qd3 {[%clk 0:01:06.7]} 27... Qc7 {[%clk 0:00:25.2]}
28. gxh6 {[%clk 0:01:03.6]} 28... O-O {[%clk 0:00:20.6]} 29. Rhg1 {[%clk
0:01:00.3]} 29... Kh7 {[%clk 0:00:20.3]} 30. Ng5+ {[%clk 0:00:59.3]} 30... Bxg5
{[%clk 0:00:19.4]} 31. hxg5 {[%clk 0:00:59]} 31... Rfc8 {[%clk 0:00:16.8]} 32.
Rg4 {[%clk 0:00:44.5]} 32... Nf4 {[%clk 0:00:11.6]} 33. Rxf4 {[%clk 0:00:41.6]}
33... exf4 {[%clk 0:00:11.1]} 34. Bb2 {[%clk 0:00:30.1]} 34... Qc4 {[%clk
0:00:09.2]} 35. Qd2 {[%clk 0:00:30.6]} 35... Re8 {[%clk 0:00:06.6]} 36. Re1
{[%clk 0:00:24.8]} 36... Rxe1+ {[%clk 0:00:06]} 37. Qxe1 {[%clk 0:00:25.7]}
37... Rc8 {[%clk 0:00:05.7]} 38. Qd2 {[%clk 0:00:19.6]} 38... Re8 {[%clk
0:00:05.8]} 39. Qd1 {[%clk 0:00:09]} 39... f3 {[%clk 0:00:03.8]} 40. Qxf3 {[%clk
0:00:06.7]} 40... Re1+ {[%clk 0:00:03.4]} 41. Bc1 {[%clk 0:00:07.3]} 41... Re2
{[%clk 0:00:01.1]} 42. Qxf7+ {[%clk 0:00:06.7]} 1-0

[Event "Early-Titled-Tuesday-Blitz-February-13-2024"]
[Site "Chess.com"]
[Date "2024.02.13"]
[Round "5"]
[White "Brave_spirit12"]
[Black "ProChessWICTH"]
[Result "1-0"]
[WhiteElo "2750"]
[BlackElo "2518"]
[TimeControl "180+1"]
[EndTime "9:00:21 PST"]
[Termination "Brave_spirit12 won by resignation"]

1. e4 {[%clk 0:02:56.4]} 1... c5 {[%clk 0:02:59.9]} 2. c3 {[%clk 0:02:56.1]}
2... Nf6 {[%clk 0:02:58.8]} 3. e5 {[%clk 0:02:56.6]} 3... Nd5 {[%clk 0:02:59.2]}
4. d4 {[%clk 0:02:57.5]} 4... cxd4 {[%clk 0:02:59.8]} 5. Nf3 {[%clk 0:02:58]}
5... e6 {[%clk 0:02:59.8]} 6. Qxd4 {[%clk 0:02:56.8]} 6... Nc6 {[%clk
0:02:59.8]} 7. Qe4 {[%clk 0:02:57.3]} 7... f5 {[%clk 0:03:00.5]} 8. Qe2 {[%clk
0:02:57.6]} 8... Be7 {[%clk 0:02:59.1]} 9. g3 {[%clk 0:02:53.4]} 9... O-O {[%clk
0:02:59.1]} 10. Bg2 {[%clk 0:02:53.9]} 10... b6 {[%clk 0:02:58.1]} 11. c4 {[%clk
0:02:51.5]} 11... Nc7 {[%clk 0:02:38.9]} 12. O-O {[%clk 0:02:51.2]} 12... Bb7
{[%clk 0:02:39.5]} 13. Nc3 {[%clk 0:02:50.6]} 13... Na6 {[%clk 0:02:20.9]} 14.
h4 {[%clk 0:02:50.6]} 14... Nc5 {[%clk 0:02:20.7]} 15. Bf4 {[%clk 0:02:51.1]}
15... Nb4 {[%clk 0:02:15.4]} 16. Rad1 {[%clk 0:02:48]} 16... Ne4 {[%clk
0:02:01.9]} 17. Nxe4 {[%clk 0:02:40.5]} 17... Bxe4 {[%clk 0:02:02.8]} 18. a3
{[%clk 0:02:39.9]} 18... Nc6 {[%clk 0:01:59.3]} 19. b4 {[%clk 0:02:37.8]} 19...
Rc8 {[%clk 0:01:55.3]} 20. Rd2 {[%clk 0:02:36.2]} 20... Qc7 {[%clk 0:01:50.7]}
21. Rfd1 {[%clk 0:02:35.4]} 21... Nb8 {[%clk 0:01:50.8]} 22. Rd4 {[%clk
0:02:25.3]} 22... a5 {[%clk 0:01:50]} 23. Bg5 {[%clk 0:02:11.1]} 23... Bxg5
{[%clk 0:01:35.8]} 24. Nxg5 {[%clk 0:02:12]} 24... Bxg2 {[%clk 0:01:36.3]} 25.
Kxg2 {[%clk 0:02:08]} 25... h6 {[%clk 0:01:31.7]} 26. Qh5 {[%clk 0:02:04.2]}
26... Qxe5 {[%clk 0:01:26.5]} 27. Qg6 {[%clk 0:01:52.3]} 27... hxg5 {[%clk
0:00:34.9]} 28. hxg5 {[%clk 0:01:53.2]} 28... f4 {[%clk 0:00:25.7]} 29. Qh5
{[%clk 0:01:07.4]} 29... fxg3 {[%clk 0:00:15.3]} 30. f3 {[%clk 0:01:06.5]} 30...
Rf5 {[%clk 0:00:06.9]} 31. f4 {[%clk 0:01:00.6]} 31... Rxf4 {[%clk 0:00:05.6]}
32. Rxf4 {[%clk 0:01:01.5]} 32... Qxf4 {[%clk 0:00:06.1]} 33. Rf1 {[%clk
0:01:02]} 33... Qe4+ {[%clk 0:00:06.1]} 34. Kxg3 {[%clk 0:01:01.9]} 34... Qe5+
{[%clk 0:00:01.8]} 35. Kg2 {[%clk 0:01:01.7]} 35... Rf8 {[%clk 0:00:02.4]} 36.
c5 {[%clk 0:00:42]} 36... Rxf1 {[%clk 0:00:02.1]} 37. Kxf1 {[%clk 0:00:41.6]}
37... Qf5+ {[%clk 0:00:02.2]} 38. Kg1 {[%clk 0:00:41.2]} 38... Nc6 {[%clk
0:00:03.1]} 39. Qe8+ {[%clk 0:00:39]} 39... Kh7 {[%clk 0:00:03.1]} 40. Qh5+
{[%clk 0:00:39.5]} 40... Kg8 {[%clk 0:00:03.8]} 41. Qe8+ {[%clk 0:00:40.3]}
41... Qf8 {[%clk 0:00:04.4]} 42. Qxd7 {[%clk 0:00:40]} 42... Ne5 {[%clk
0:00:04.2]} 43. Qxe6+ {[%clk 0:00:39.9]} 43... Kh7 {[%clk 0:00:02.4]} 44. Qxe5
{[%clk 0:00:39.6]} 44... axb4 {[%clk 0:00:02.8]} 45. axb4 {[%clk 0:00:39.4]}
45... bxc5 {[%clk 0:00:03.4]} 46. bxc5 {[%clk 0:00:40.3]} 46... Qc8 {[%clk
0:00:03.6]} 47. Qe4+ {[%clk 0:00:39.9]} 47... g6 {[%clk 0:00:03.6]} 48. c6
{[%clk 0:00:40.2]} 48... Qc7 {[%clk 0:00:04]} 49. Kg2 {[%clk 0:00:37.9]} 49...
Kg7 {[%clk 0:00:04.6]} 50. Qd4+ {[%clk 0:00:38.1]} 50... Kf7 {[%clk 0:00:04.8]}
51. Qd5+ {[%clk 0:00:38.5]} 51... Ke7 {[%clk 0:00:04.9]} 52. Kf3 {[%clk
0:00:38.4]} 52... Qd6 {[%clk 0:00:04.1]} 53. Qxd6+ {[%clk 0:00:32.7]} 53... Kxd6
{[%clk 0:00:05]} 54. Ke4 {[%clk 0:00:33.4]} 54... Kxc6 {[%clk 0:00:05.6]} 55.
Ke5 {[%clk 0:00:34.3]} 55... Kd7 {[%clk 0:00:05.7]} 56. Kf6 {[%clk 0:00:35.2]}
56... Ke8 {[%clk 0:00:06.5]} 57. Kxg6 {[%clk 0:00:36.1]} 57... Kf8 {[%clk
0:00:07.4]} 58. Kh7 {[%clk 0:00:37]} 1-0

[Event "Early-Titled-Tuesday-Blitz-February-13-2024"]
[Site "Chess.com"]
[Date "2024.02.13"]
[Round "5"]
[White "MyDream003"]
[Black "artooon"]
[Result "0-1"]
[WhiteElo "2714"]
[BlackElo "3026"]
[TimeControl "180+1"]
[EndTime "9:00:22 PST"]
[Termination "artooon won on time"]

1. e4 {[%clk 0:02:59.8]} 1... e5 {[%clk 0:02:59.4]} 2. Nf3 {[%clk 0:03:00]} 2...
Nc6 {[%clk 0:02:59.3]} 3. Bb5 {[%clk 0:03:00]} 3... a6 {[%clk 0:02:59.3]} 4. Ba4
{[%clk 0:03:00]} 4... Nf6 {[%clk 0:02:58.1]} 5. O-O {[%clk 0:03:00.3]} 5... Bc5
{[%clk 0:02:57.8]} 6. c3 {[%clk 0:02:58.5]} 6... O-O {[%clk 0:02:57.2]} 7. d4
{[%clk 0:02:57.9]} 7... Ba7 {[%clk 0:02:57.1]} 8. Re1 {[%clk 0:02:44.4]} 8... d6
{[%clk 0:02:51.4]} 9. h3 {[%clk 0:02:43]} 9... Re8 {[%clk 0:02:46.2]} 10. Bc2
{[%clk 0:02:18.7]} 10... h6 {[%clk 0:02:44.3]} 11. Be3 {[%clk 0:02:03.1]} 11...
exd4 {[%clk 0:02:42.4]} 12. Bxd4 {[%clk 0:02:04]} 12... Nxd4 {[%clk 0:02:41.7]}
13. cxd4 {[%clk 0:02:04.9]} 13... b5 {[%clk 0:02:41.3]} 14. Nbd2 {[%clk
0:01:59.1]} 14... Bb7 {[%clk 0:02:41.1]} 15. Rc1 {[%clk 0:01:57.4]} 15... c5
{[%clk 0:02:40.4]} 16. d5 {[%clk 0:01:57.1]} 16... c4 {[%clk 0:02:40.3]} 17. Nf1
{[%clk 0:01:56.2]} 17... Bc5 {[%clk 0:02:37.5]} 18. Ng3 {[%clk 0:01:52.1]} 18...
Qb6 {[%clk 0:02:36.7]} 19. Qd2 {[%clk 0:01:51]} 19... a5 {[%clk 0:02:21.1]} 20.
a3 {[%clk 0:01:50.9]} 20... b4 {[%clk 0:02:18.7]} 21. Ba4 {[%clk 0:01:47.8]}
21... Rec8 {[%clk 0:02:18.3]} 22. Nf5 {[%clk 0:01:34.1]} 22... Kf8 {[%clk
0:02:08.4]} 23. Nxh6 {[%clk 0:01:03.5]} 23... c3 {[%clk 0:02:06.8]} 24. bxc3
{[%clk 0:01:02.2]} 24... bxc3 {[%clk 0:02:07.7]} 25. Qf4 {[%clk 0:00:49.4]}
25... Bxf2+ {[%clk 0:02:06.5]} 26. Kh1 {[%clk 0:00:49.5]} 26... Bxe1 {[%clk
0:02:04.2]} 27. Rxe1 {[%clk 0:00:50.4]} 27... c2 {[%clk 0:02:01.3]} 28. Nf5
{[%clk 0:00:28.9]} 28... c1=Q {[%clk 0:01:39.2]} 29. Rxc1 {[%clk 0:00:28.6]}
29... Rxc1+ {[%clk 0:01:38.8]} 30. Qxc1 {[%clk 0:00:29.5]} 30... Bc8 {[%clk
0:01:18.1]} 31. Nxg7 {[%clk 0:00:28.1]} 31... Bxh3 {[%clk 0:00:46.7]} 32. Qh6
{[%clk 0:00:15.7]} 32... Qb1+ {[%clk 0:00:45.2]} 33. Ng1 {[%clk 0:00:16]} 33...
Bxg2+ {[%clk 0:00:44.3]} 34. Kxg2 {[%clk 0:00:16.9]} 34... Qxe4+ {[%clk
0:00:45]} 35. Kf1 {[%clk 0:00:11.9]} 35... Ke7 {[%clk 0:00:23.3]} 36. Qg5 {[%clk
0:00:08.7]} 36... Qxa4 {[%clk 0:00:11.2]} 37. Nf5+ {[%clk 0:00:08.4]} 37... Kd7
{[%clk 0:00:11.9]} 38. Qxf6 {[%clk 0:00:07.9]} 38... Qd1+ {[%clk 0:00:12.6]} 39.
Kf2 {[%clk 0:00:06.6]} 39... Qxd5 {[%clk 0:00:13.2]} 40. Nf3 {[%clk 0:00:05.5]}
40... Re8 {[%clk 0:00:12.2]} 41. Qg5 {[%clk 0:00:01.4]} 41... Re4 {[%clk
0:00:11]} 0-1

[Event "Early-Titled-Tuesday-Blitz-February-13-2024"]
[Site "Chess.com"]
[Date "2024.02.13"]
[Round "5"]
[White "Kunalm64"]
[Black "egnfanclub"]
[Result "0-1"]
[WhiteElo "2522"]
[BlackElo "2369"]
[TimeControl "180+1"]
[EndTime "9:00:23 PST"]
[Termination "egnfanclub won by resignation"]

1. e4 {[%clk 0:03:00.9]} 1... e5 {[%clk 0:02:59.9]} 2. Nf3 {[%clk 0:02:59.7]}
2... Nc6 {[%clk 0:02:59.9]} 3. Bb5 {[%clk 0:03:00.4]} 3... a6 {[%clk 0:02:59.3]}
4. Ba4 {[%clk 0:03:00.3]} 4... d6 {[%clk 0:02:59.7]} 5. c4 {[%clk 0:02:52.1]}
5... f5 {[%clk 0:02:46.4]} 6. exf5 {[%clk 0:02:08.5]} 6... Bxf5 {[%clk
0:02:45.1]} 7. O-O {[%clk 0:02:02.5]} 7... Bd3 {[%clk 0:02:37.6]} 8. Re1 {[%clk
0:02:02.1]} 8... Be7 {[%clk 0:02:37.9]} 9. Bc2 {[%clk 0:01:49.1]} 9... Bxc2
{[%clk 0:02:33.5]} 10. Qxc2 {[%clk 0:01:48.9]} 10... Nf6 {[%clk 0:02:34.1]} 11.
b3 {[%clk 0:01:44.7]} 11... O-O {[%clk 0:02:33.7]} 12. Bb2 {[%clk 0:01:44.6]}
12... Qd7 {[%clk 0:02:24.6]} 13. h3 {[%clk 0:01:43.5]} 13... e4 {[%clk
0:01:45.1]} 14. Rxe4 {[%clk 0:01:15.4]} 14... Nxe4 {[%clk 0:01:45.7]} 15. Qxe4
{[%clk 0:01:15.1]} 15... Bf6 {[%clk 0:01:42.4]} 16. Bxf6 {[%clk 0:01:13.8]}
16... Rxf6 {[%clk 0:01:43.3]} 17. Nc3 {[%clk 0:01:12.9]} 17... Re8 {[%clk
0:01:38.2]} 18. Qd5+ {[%clk 0:01:09]} 18... Kh8 {[%clk 0:01:17.7]} 19. Qh5
{[%clk 0:01:06.8]} 19... Qf7 {[%clk 0:01:11.5]} 20. Qg4 {[%clk 0:01:04.8]} 20...
Ne5 {[%clk 0:01:07.4]} 21. Nxe5 {[%clk 0:01:04.3]} 21... dxe5 {[%clk 0:01:07.4]}
22. Ne4 {[%clk 0:01:03.1]} 22... Rf4 {[%clk 0:01:02.3]} 23. Qe2 {[%clk 0:01:03]}
23... Qg6 {[%clk 0:00:52.9]} 24. d3 {[%clk 0:01:00.5]} 24... h6 {[%clk
0:00:48.2]} 25. Qe3 {[%clk 0:00:59.4]} 25... b6 {[%clk 0:00:44.7]} 26. b4 {[%clk
0:00:41.7]} 26... Rd8 {[%clk 0:00:44.6]} 27. a4 {[%clk 0:00:40.7]} 27... Rxd3
{[%clk 0:00:24.8]} 28. Qxd3 {[%clk 0:00:40.3]} 28... Qxe4 {[%clk 0:00:25.5]} 29.
Qd8+ {[%clk 0:00:33.5]} 29... Kh7 {[%clk 0:00:25.2]} 30. Qxc7 {[%clk 0:00:33.7]}
30... Qxc4 {[%clk 0:00:25.4]} 31. Qxb6 {[%clk 0:00:28.3]} 31... Qxb4 {[%clk
0:00:24.3]} 32. Qxa6 {[%clk 0:00:28.2]} 32... Qd4 {[%clk 0:00:24.3]} 33. Rf1
{[%clk 0:00:26.8]} 33... Qxa4 {[%clk 0:00:23.9]} 34. Qe6 {[%clk 0:00:26.4]}
34... Qe4 {[%clk 0:00:22.8]} 35. g3 {[%clk 0:00:25.9]} 35... Rf6 {[%clk
0:00:21.6]} 36. Qe7 {[%clk 0:00:25.7]} 36... Qf5 {[%clk 0:00:21.3]} 37. h4
{[%clk 0:00:24.5]} 37... e4 {[%clk 0:00:21.2]} 38. Qa7 {[%clk 0:00:23]} 38...
Qf3 {[%clk 0:00:20.7]} 39. Qe3 {[%clk 0:00:22.8]} 39... Qxe3 {[%clk 0:00:20.1]}
40. fxe3 {[%clk 0:00:23]} 40... Rxf1+ {[%clk 0:00:19.5]} 41. Kxf1 {[%clk
0:00:23.5]} 41... Kg6 {[%clk 0:00:20.4]} 42. g4 {[%clk 0:00:15.2]} 42... h5
{[%clk 0:00:20.4]} 43. gxh5+ {[%clk 0:00:07.9]} 43... Kxh5 {[%clk 0:00:21.3]}
44. Kg2 {[%clk 0:00:08.3]} 44... Kxh4 {[%clk 0:00:21.7]} 45. Kh2 {[%clk
0:00:08.9]} 45... Kg4 {[%clk 0:00:22.1]} 46. Kg2 {[%clk 0:00:09.6]} 46... g5
{[%clk 0:00:22.4]} 47. Kf2 {[%clk 0:00:09.7]} 47... Kh3 {[%clk 0:00:22.7]} 48.
Ke2 {[%clk 0:00:09.9]} 48... Kg2 {[%clk 0:00:22.5]} 49. Kd2 {[%clk 0:00:10]}
49... Kf2 {[%clk 0:00:22.5]} 50. Kc3 {[%clk 0:00:10.2]} 50... Kxe3 {[%clk
0:00:23.2]} 51. Kc4 {[%clk 0:00:10.7]} 51... g4 {[%clk 0:00:24]} 52. Kc5 {[%clk
0:00:11.4]} 52... g3 {[%clk 0:00:24.9]} 53. Kc6 {[%clk 0:00:12.3]} 53... g2
{[%clk 0:00:25.4]} 54. Kc7 {[%clk 0:00:13.2]} 54... g1=Q {[%clk 0:00:26.1]} 55.
Kc8 {[%clk 0:00:14.1]} 55... Qd1 {[%clk 0:00:26.7]} 0-1

[Event "Early-Titled-Tuesday-Blitz-February-13-2024"]
[Site "Chess.com"]
[Date "2024.02.13"]
[Round "5"]
[White "CFN_Good_Evening"]
[Black "Semetey"]
[Result "1-0"]
[WhiteElo "2083"]
[BlackElo "2640"]
[TimeControl "180+1"]
[EndTime "9:00:24 PST"]
[Termination "CFN_Good_Evening won on time"]

1. e4 {[%clk 0:03:00.9]} 1... e5 {[%clk 0:02:42.4]} 2. Nf3 {[%clk 0:03:00.2]}
2... Nc6 {[%clk 0:02:42.2]} 3. Bb5 {[%clk 0:02:59.3]} 3... a6 {[%clk 0:02:42.4]}
4. Ba4 {[%clk 0:02:59.4]} 4... Nf6 {[%clk 0:02:42]} 5. O-O {[%clk 0:02:59.7]}
5... Be7 {[%clk 0:02:41.5]} 6. d3 {[%clk 0:02:57.3]} 6... b5 {[%clk 0:02:41.3]}
7. Bb3 {[%clk 0:02:57.5]} 7... O-O {[%clk 0:02:41.2]} 8. Re1 {[%clk 0:02:56.7]}
8... d6 {[%clk 0:02:40.7]} 9. c3 {[%clk 0:02:56.2]} 9... Bg4 {[%clk 0:02:39.6]}
10. h3 {[%clk 0:02:55.2]} 10... Bh5 {[%clk 0:02:39.8]} 11. Nbd2 {[%clk
0:02:55.4]} 11... Na5 {[%clk 0:02:38.3]} 12. Bc2 {[%clk 0:02:54.8]} 12... c5
{[%clk 0:02:38.4]} 13. Nf1 {[%clk 0:02:55.4]} 13... Nc6 {[%clk 0:02:36.4]} 14.
Ng3 {[%clk 0:02:55.1]} 14... Bg6 {[%clk 0:02:33.7]} 15. Nh4 {[%clk 0:02:40.9]}
15... d5 {[%clk 0:02:30.4]} 16. Nhf5 {[%clk 0:02:39.1]} 16... Re8 {[%clk
0:02:28.5]} 17. Qe2 {[%clk 0:02:30]} 17... h6 {[%clk 0:02:20.3]} 18. h4 {[%clk
0:02:24.5]} 18... Bf8 {[%clk 0:02:16.9]} 19. h5 {[%clk 0:02:23.2]} 19... Bh7
{[%clk 0:02:17]} 20. Qf3 {[%clk 0:02:13.6]} 20... dxe4 {[%clk 0:02:11.5]} 21.
dxe4 {[%clk 0:02:10.4]} 21... Nd7 {[%clk 0:01:52.3]} 22. a4 {[%clk 0:02:03.7]}
22... Qc7 {[%clk 0:01:46.5]} 23. Qg4 {[%clk 0:01:59.3]} 23... Kh8 {[%clk
0:01:44.6]} 24. Qe2 {[%clk 0:01:52.9]} 24... c4 {[%clk 0:01:38.7]} 25. Be3
{[%clk 0:01:43.4]} 25... Nc5 {[%clk 0:01:34]} 26. Red1 {[%clk 0:01:29.8]} 26...
Ne6 {[%clk 0:01:23]} 27. b3 {[%clk 0:01:18.6]} 27... Nf4 {[%clk 0:01:21.2]} 28.
Qf3 {[%clk 0:01:17.1]} 28... Na5 {[%clk 0:01:14.1]} 29. b4 {[%clk 0:01:13.8]}
29... Nb3 {[%clk 0:01:09.5]} 30. Ra3 {[%clk 0:01:08.9]} 30... a5 {[%clk
0:01:05.2]} 31. axb5 {[%clk 0:00:51.4]} 31... axb4 {[%clk 0:01:05]} 32. Rxa8
{[%clk 0:00:52.3]} 32... Rxa8 {[%clk 0:01:04.7]} 33. cxb4 {[%clk 0:00:52.2]}
33... Bxb4 {[%clk 0:01:00.7]} 34. Ne2 {[%clk 0:00:48.3]} 34... Ne6 {[%clk
0:00:56.9]} 35. b6 {[%clk 0:00:43.1]} 35... Qc6 {[%clk 0:00:52.1]} 36. Rb1
{[%clk 0:00:40.9]} 36... Bc5 {[%clk 0:00:44.2]} 37. Bxb3 {[%clk 0:00:37.8]}
37... cxb3 {[%clk 0:00:42.7]} 38. Rxb3 {[%clk 0:00:36.6]} 38... Ng5 {[%clk
0:00:30.5]} 39. Bxg5 {[%clk 0:00:33.2]} 39... hxg5 {[%clk 0:00:31.4]} 40. h6
{[%clk 0:00:27.5]} 40... Bxf5 {[%clk 0:00:26.6]} 41. hxg7+ {[%clk 0:00:26.7]}
41... Kxg7 {[%clk 0:00:27.5]} 42. Qxf5 {[%clk 0:00:26.6]} 42... Ra1+ {[%clk
0:00:13.5]} 43. Kh2 {[%clk 0:00:24.2]} 43... Qh6+ {[%clk 0:00:07.1]} 44. Rh3
{[%clk 0:00:23.6]} 44... Qf6 {[%clk 0:00:06]} 45. Rh7+ {[%clk 0:00:22.9]} 45...
Kg8 {[%clk 0:00:05.4]} 46. Qxf6 {[%clk 0:00:23.2]} 1-0

[Event "Early-Titled-Tuesday-Blitz-February-13-2024"]
[Site "Chess.com"]
[Date "2024.02.13"]
[Round "5"]
[White "aghasiyevkamal"]
[Black "db-banana"]
[Result "1-0"]
[WhiteElo "2627"]
[BlackElo "2486"]
[TimeControl "180+1"]
[EndTime "9:00:24 PST"]
[Termination "aghasiyevkamal won by resignation"]

1. d4 {[%clk 0:02:59.6]} 1... Nf6 {[%clk 0:02:57.4]} 2. c4 {[%clk 0:02:58.6]}
2... e6 {[%clk 0:02:57.3]} 3. Nf3 {[%clk 0:02:57.2]} 3... b6 {[%clk 0:02:54.1]}
4. g3 {[%clk 0:02:55.4]} 4... Ba6 {[%clk 0:02:48.4]} 5. Nbd2 {[%clk 0:02:50.1]}
5... d5 {[%clk 0:02:25.4]} 6. Bg2 {[%clk 0:02:46.7]} 6... Be7 {[%clk 0:02:24.2]}
7. O-O {[%clk 0:02:45.4]} 7... O-O {[%clk 0:02:24.5]} 8. b3 {[%clk 0:02:41]}
8... Nbd7 {[%clk 0:02:21.6]} 9. Bb2 {[%clk 0:02:32.1]} 9... Rc8 {[%clk 0:02:22]}
10. e4 {[%clk 0:02:21.4]} 10... dxe4 {[%clk 0:02:18.7]} 11. Ne5 {[%clk
0:02:20.9]} 11... Nxe5 {[%clk 0:02:02.2]} 12. dxe5 {[%clk 0:02:19.6]} 12... Nd7
{[%clk 0:01:59]} 13. Nxe4 {[%clk 0:02:17.7]} 13... Nc5 {[%clk 0:01:56.6]} 14.
Qh5 {[%clk 0:02:09]} 14... Nxe4 {[%clk 0:01:52.9]} 15. Bxe4 {[%clk 0:02:08.9]}
15... g6 {[%clk 0:01:52.9]} 16. Qe2 {[%clk 0:02:06.1]} 16... c5 {[%clk
0:01:44.6]} 17. Bc1 {[%clk 0:02:03.8]} 17... Qc7 {[%clk 0:01:42.2]} 18. Bh6
{[%clk 0:01:56]} 18... Rfd8 {[%clk 0:01:40.3]} 19. Bf3 {[%clk 0:01:44.2]} 19...
Bb7 {[%clk 0:01:37.7]} 20. Bxb7 {[%clk 0:01:38.5]} 20... Qxb7 {[%clk 0:01:38.6]}
21. Rad1 {[%clk 0:01:38.4]} 21... Rd4 {[%clk 0:01:21.3]} 22. Be3 {[%clk
0:01:36.4]} 22... Rd7 {[%clk 0:01:10.3]} 23. Rxd7 {[%clk 0:01:31]} 23... Qxd7
{[%clk 0:01:11.2]} 24. Rd1 {[%clk 0:01:31.2]} 24... Qc7 {[%clk 0:01:04.6]} 25.
Qf3 {[%clk 0:01:25.6]} 25... Rd8 {[%clk 0:00:41.4]} 26. Rxd8+ {[%clk 0:01:18.6]}
26... Bxd8 {[%clk 0:00:42.3]} 27. Qa8 {[%clk 0:01:15.8]} 27... Kg7 {[%clk
0:00:39.3]} 28. h4 {[%clk 0:01:13.9]} 28... Be7 {[%clk 0:00:34.3]} 29. h5 {[%clk
0:01:11]} 29... h6 {[%clk 0:00:23.1]} 30. hxg6 {[%clk 0:01:05.6]} 30... fxg6
{[%clk 0:00:20.1]} 31. Bxh6+ {[%clk 0:01:03.3]} 31... Kh7 {[%clk 0:00:07.3]} 32.
Bf4 {[%clk 0:00:50]} 32... g5 {[%clk 0:00:07.1]} 33. Qe4+ {[%clk 0:00:48.2]}
33... Kg7 {[%clk 0:00:07]} 34. Be3 {[%clk 0:00:42.6]} 34... Qd7 {[%clk
0:00:07.6]} 35. Qg4 {[%clk 0:00:37.7]} 35... Qd3 {[%clk 0:00:03.4]} 36. Bxg5
{[%clk 0:00:34.7]} 36... Qb1+ {[%clk 0:00:03.3]} 37. Kg2 {[%clk 0:00:33]} 37...
Qg6 {[%clk 0:00:03.5]} 38. Bf6+ {[%clk 0:00:30.4]} 38... Bxf6 {[%clk 0:00:03.5]}
39. exf6+ {[%clk 0:00:28.3]} 39... Kxf6 {[%clk 0:00:03]} 40. Qxg6+ {[%clk
0:00:28.5]} 40... Kxg6 {[%clk 0:00:03.9]} 41. Kf3 {[%clk 0:00:28.9]} 41... Kf5
{[%clk 0:00:04.1]} 42. g4+ {[%clk 0:00:28.5]} 42... Kg5 {[%clk 0:00:04.3]} 43.
Kg3 {[%clk 0:00:21.9]} 43... e5 {[%clk 0:00:03.7]} 44. f3 {[%clk 0:00:22.2]}
44... a6 {[%clk 0:00:02.8]} 45. a3 {[%clk 0:00:20.6]} 45... b5 {[%clk
0:00:02.5]} 46. a4 {[%clk 0:00:20.5]} 46... bxa4 {[%clk 0:00:02]} 47. bxa4
{[%clk 0:00:20.6]} 47... a5 {[%clk 0:00:02.5]} 48. f4+ {[%clk 0:00:20.5]} 48...
exf4+ {[%clk 0:00:02.6]} 49. Kf3 {[%clk 0:00:20.8]} 49... Kg6 {[%clk 0:00:02.7]}
50. Kxf4 {[%clk 0:00:21]} 50... Kf6 {[%clk 0:00:03.4]} 51. Ke4 {[%clk
0:00:21.4]} 51... Kg5 {[%clk 0:00:04]} 52. Kd5 {[%clk 0:00:21.9]} 52... Kxg4
{[%clk 0:00:04.4]} 53. Kxc5 {[%clk 0:00:22.5]} 1-0